bitfinex/quotes_BTCUSD_20240617
["timestamp","ask_amount","ask_price","bid_price","bid_amount"]
[1718582956899,0.002,66639.0,66638.0,0.41783779]
[1718582957098,0.003,66639.0,66638.0,0.42683779]
[1718582957515,0.001,66639.0,66638.0,0.41183779]
[1718582957923,0.002,66639.0,66638.0,0.41783779]
[1718582958337,0.001,66639.0,66638.0,0.41183779]
[1718582958769,0.002,66639.0,66638.0,0.42083779]
[1718582959175,0.001,66639.0,66638.0,0.42083779]
[1718582959404,0.002,66639.0,66638.0,0.42983779]
[1718582959649,0.052,66639.0,66638.0,0.42983779]
[1718582959861,0.052,66639.0,66638.0,0.43583779]
[1718582960129,0.051,66639.0,66638.0,0.39783779]
[1718582960369,0.200062,66639.0,66638.0,0.09001]
[1718582960649,0.201062,66639.0,66638.0,0.09901]
[1718582960856,0.052,66639.0,66638.0,0.10501]
[1718582961998,0.052,66639.0,66638.0,0.12501]
[1718582966135,0.052,66639.0,66638.0,0.125956]
[1718582966342,0.05286,66639.0,66638.0,0.125956]
[1718582967740,0.00286,66639.0,66638.0,0.57100779]
[1718582967972,0.00286,66639.0,66638.0,0.84758679]
[1718582968165,0.00286,66639.0,66638.0,1.2722662]
[1718582968603,0.05286,66639.0,66638.0,1.2722662]
[1718582969214,0.00286,66639.0,66638.0,1.2722662]
[1718582969420,0.00286,66639.0,66638.0,1.40709721]
[1718582973574,0.00286,66639.0,66638.0,1.40709317]
[1718582978536,0.00286,66639.0,66638.0,1.71722217]
[1718582978755,0.00286,66639.0,66638.0,1.72845445]
[1718582979165,0.00286,66639.0,66638.0,1.71845445]
[1718582979762,0.00286,66639.0,66638.0,1.72845445]
[1718582980135,0.00286,66639.0,66638.0,1.71845445]
[1718582980344,0.00286,66639.0,66638.0,2.02858345]
[1718582980549,0.00286,66639.0,66638.0,2.07346529]
[1718582980767,0.00286,66639.0,66638.0,1.76333629]
[1718582980977,0.00286,66639.0,66638.0,1.41831859]
[1718582981158,0.00286,66639.0,66638.0,1.10695731]
[1718582981603,0.00286,66639.0,66638.0,0.80682831]
[1718582981819,0.00286,66639.0,66638.0,1.10695731]
[1718582982041,0.00286,66639.0,66638.0,1.70721531]
[1718582982636,0.00286,66639.0,66638.0,2.01857154]
[1718582984555,0.00286,66639.0,66638.0,1.71721531]
[1718582984760,0.00286,66639.0,66638.0,1.70721531]
[1718582985378,0.00286,66639.0,66638.0,1.77454837]
[1718582986007,0.00286,66639.0,66638.0,1.78454837]
[1718582986210,0.00286,66639.0,66638.0,1.77454837]
[1718582986420,0.00286,66639.0,66638.0,1.70721531]
[1718582986805,0.00286,66639.0,66638.0,2.13349702]
[1718582987095,0.00286,66639.0,66638.0,2.06616396]
[1718582987303,0.00286,66639.0,66638.0,2.0661476]
[1718582990384,0.00286,66639.0,66638.0,2.13355739]
[1718582992236,0.00286,66639.0,66638.0,2.13355682]
[1718582996268,0.00286,66639.0,66638.0,2.06614703]
[1718582997266,0.00286,66639.0,66638.0,2.16614703]
[1718582997588,0.00286,66639.0,66638.0,2.06614703]
[1718582997836,0.00286,66639.0,66638.0,2.13355682]
[1718582998622,0.00286,66639.0,66638.0,2.13343264]
[1718582999852,0.00286,66639.0,66638.0,2.46615185]
[1718583000060,0.00286,66639.0,66638.0,2.51615185]
[1718583000296,0.00286,66639.0,66638.0,2.68472905]
[1718583000876,0.00186,66639.0,66638.0,2.67572905]
[1718583001080,0.00286,66639.0,66638.0,2.68472905]
[1718583001239,0.00286,66639.0,66638.0,2.67872905]
[1718583001445,0.00186,66639.0,66638.0,2.77255778]
[1718583001718,0.00286,66639.0,66638.0,2.78655778]
[1718583001919,0.00286,66639.0,66638.0,2.69272905]
[1718583003074,0.00286,66639.0,66638.0,2.71073723]
[1718583003487,0.00286,66639.0,66638.0,2.8229894]
[1718583003701,0.00286,66639.0,66638.0,2.71073723]
[1718583003902,0.00286,66639.0,66638.0,2.76073723]
[1718583004331,0.00286,66639.0,66638.0,2.2199513]
[1718583004573,0.05286,66639.0,66638.0,1.16303384]
[1718583004851,0.05286,66639.0,66638.0,1.11434935]
[1718583005100,0.00286,66639.0,66638.0,1.11434935]
[1718583005316,0.05286,66639.0,66638.0,1.11434935]
[1718583005550,0.05286,66639.0,66638.0,1.41447835]
[1718583005789,0.05286,66639.0,66638.0,1.56335605]
[1718583006502,0.05286,66639.0,66638.0,1.5863658]
[1718583006726,0.04716,66639.0,66638.0,1.46182249]
[1718583006947,0.04716,66639.0,66638.0,1.2862368]
[1718583009162,0.04716,66639.0,66638.0,0.9861078]
[1718583009584,0.04716,66639.0,66638.0,0.86156449]
[1718583010916,0.0657,66640.0,66639.0,0.450186]
[1718583011134,0.1157,66640.0,66639.0,0.74799353]
[1718583011345,0.0657,66640.0,66639.0,0.74799353]
[1718583011558,0.1157,66640.0,66639.0,0.79145353]
[1718583012399,0.1092,66640.0,66639.0,0.80545353]
[1718583012624,0.1092,66640.0,66639.0,0.50532953]
[1718583012815,0.1092,66640.0,66639.0,0.51932953]
[1718583013023,0.1102,66640.0,66639.0,0.51932953]
[1718583013232,0.1102,66640.0,66639.0,0.50532953]
[1718583013435,0.1102,66640.0,66639.0,0.51632953]
[1718583013626,0.1112,66640.0,66639.0,0.51632953]
[1718583014282,0.1102,66640.0,66639.0,0.50232953]
[1718583015523,0.1092,66640.0,66639.0,0.49132953]
[1718583015728,0.1082,66640.0,66639.0,0.49132953]
[1718583015970,0.1102,66640.0,66639.0,0.50932953]
[1718583016537,0.1092,66640.0,66639.0,0.50032953]
[1718583016777,0.1102,66640.0,66639.0,0.50832953]
[1718583016977,0.0602,66640.0,66639.0,0.80845353]
[1718583017185,0.1102,66640.0,66639.0,0.80845353]
[1718583017635,0.1102,66640.0,66639.0,0.50832953]
[1718583020860,0.1959,66640.0,66639.0,0.20617974]
[1718583021088,0.1959,66640.0,66639.0,0.10346]
[1718583023692,0.1459,66640.0,66639.0,0.10346]
[1718583023895,0.1959,66640.0,66639.0,0.10346]
[1718583025237,0.1959,66640.0,66639.0,0.08346]
[1718583025445,0.1959,66640.0,66639.0,0.11084699]
[1718583025851,0.1959,66640.0,66639.0,0.08346]
[1718583026523,0.1959,66640.0,66639.0,0.10346]
[1718583026738,0.1959,66640.0,66639.0,0.08346]
[1718583027489,0.1959,66640.0,66639.0,0.10346]
[1718583030825,0.1959,66640.0,66639.0,0.104406]
[1718583031024,0.1959,66640.0,66639.0,0.16190159]
[1718583031266,0.1959,66640.0,66639.0,0.14190159]
[1718583031267,0.34682,66640.0,66639.0,0.14190159]
[1718583031476,0.34682,66640.0,66639.0,0.084406]
[1718583031477,0.19676,66640.0,66639.0,0.084406]
[1718583031681,0.19984586,66640.0,66639.0,0.084406]
[1718583033334,0.19984586,66640.0,66639.0,0.104406]
[1718583034542,0.19984586,66640.0,66639.0,0.084406]
[1718583034753,0.14984586,66640.0,66639.0,0.104406]
[1718583034952,0.19984586,66640.0,66639.0,0.1299485]
[1718583036433,0.00594586,66640.0,66639.0,1.03234629]
[1718583036634,0.00286,66640.0,66639.0,0.86762229]
[1718583037262,0.00286,66640.0,66639.0,1.03234629]
[1718583037487,0.00286,66640.0,66639.0,1.45697933]
[1718583037692,0.00286,66640.0,66639.0,1.15685533]
[1718583039214,0.00286,66640.0,66639.0,1.45697933]
[1718583039420,0.00286,66640.0,66639.0,1.66277933]
[1718583039622,0.00286,66640.0,66639.0,1.66916658]
[1718583039825,0.00286,66640.0,66639.0,1.71411212]
[1718583039983,0.00286,66640.0,66639.0,1.66916658]
[1718583040187,0.00086,66640.0,66639.0,1.95229058]
[1718583040385,0.00086,66640.0,66639.0,2.00229058]
[1718583040624,0.00286,66640.0,66639.0,1.73016658]
[1718583041235,0.00286,66640.0,66639.0,1.68016658]
[1718583041460,0.00286,66640.0,66639.0,1.67721828]
[1718583042462,0.00286,66640.0,66639.0,1.74461785]
[1718583042839,0.00286,66640.0,66639.0,1.67721828]
[1718583044148,0.00286,66640.0,66639.0,2.02734228]
[1718583044383,0.00286,66640.0,66639.0,1.72721828]
[1718583044581,0.00286,66640.0,66639.0,2.03853547]
[1718583045028,0.00286,66640.0,66639.0,2.03877522]
[1718583045921,0.00286,66640.0,66639.0,2.0581472]
[1718583046397,0.00286,66640.0,66639.0,2.5082712]
[1718583047688,0.00286,66640.0,66639.0,2.60656589]
[1718583047689,0.00186,66640.0,66639.0,2.60656589]
[1718583047857,0.00086,66640.0,66639.0,2.4802712]
[1718583048072,0.00086,66640.0,66639.0,2.59257539]
[1718583048306,0.00086,66640.0,66639.0,2.4942712]
[1718583049140,0.00086,66640.0,66639.0,2.5082712]
[1718583049339,0.00086,66640.0,66639.0,2.4942712]
[1718583049548,0.00086,66640.0,66639.0,2.4802712]
[1718583049752,0.00086,66640.0,66639.0,2.4942712]
[1718583049977,0.00086,66640.0,66639.0,2.55656036]
[1718583050251,0.00086,66640.0,66639.0,2.4942712]
[1718583050456,0.00086,66640.0,66639.0,2.62056002]
[1718583051074,0.00086,66640.0,66639.0,2.82056002]
[1718583051891,0.00086,66640.0,66639.0,2.72056002]
[1718583052505,0.00086,66640.0,66639.0,2.82056002]
[1718583053425,0.00086,66640.0,66639.0,2.7082712]
[1718583053777,0.00086,66640.0,66639.0,2.6082712]
[1718583057358,0.00086,66640.0,66639.0,2.79805406]
[1718583058353,0.00086,66640.0,66639.0,2.69805406]
[1718583059244,0.00086,66640.0,66639.0,2.79805406]
[1718583059478,0.00086,66640.0,66639.0,2.69805406]
[1718583060247,0.00086,66640.0,66639.0,2.79805406]
[1718583062023,0.00086,66640.0,66639.0,2.70781744]
[1718583062252,0.00086,66640.0,66639.0,2.7976003]
[1718583063281,0.00086,66640.0,66639.0,2.70781744]
[1718583066105,0.00086,66640.0,66639.0,2.60781744]
[1718583066337,0.00086,66640.0,66639.0,2.70781744]
[1718583066959,0.00086,66640.0,66639.0,2.55781744]
[1718583067191,0.00086,66640.0,66639.0,2.60781744]
[1718583067457,0.00086,66640.0,66639.0,2.70781744]
[1718583071023,0.00086,66640.0,66639.0,2.79757247]
[1718583071214,0.00086,66640.0,66639.0,2.94568092]
[1718583071417,0.00086,66640.0,66639.0,2.97980166]
[1718583072154,0.00086,66640.0,66639.0,3.27992566]
[1718583072358,0.00086,66640.0,66639.0,3.26592566]
[1718583072763,0.00086,66640.0,66639.0,3.56604166]
[1718583072989,0.00086,66640.0,66639.0,3.67822926]
[1718583073196,0.00086,66640.0,66639.0,3.55204166]
[1718583073402,0.00086,66640.0,66639.0,3.60445136]
[1718583073859,0.00086,66640.0,66639.0,3.61845136]
[1718583074574,0.00086,66640.0,66639.0,3.63245136]
[1718583074777,0.00086,66640.0,66639.0,3.63278145]
[1718583074989,0.00086,66640.0,66639.0,3.58278145]
[1718583075165,0.00086,66640.0,66639.0,3.93290545]
[1718583075570,0.00086,66640.0,66639.0,3.82070047]
[1718583075784,0.00086,66640.0,66639.0,4.00401839]
[1718583075965,0.00086,66640.0,66639.0,3.89180484]
[1718583076177,0.00086,66640.0,66639.0,4.00402024]
[1718583076419,0.00086,66640.0,66639.0,3.89180484]
[1718583083571,0.00086,66640.0,66639.0,4.0264611]
[1718583084391,0.00086,66640.0,66639.0,3.89180484]
[1718583085401,0.138,66657.0,66656.0,1.123628]
[1718583085606,0.138,66657.0,66656.0,2.30535197]
[1718583085821,0.138,66657.0,66656.0,2.39580902]
[1718583086836,0.138,66657.0,66656.0,2.40580902]
[1718583087008,0.138,66657.0,66656.0,2.33835197]
[1718583087258,0.138,66657.0,66656.0,2.50343976]
[1718583087476,0.138,66657.0,66656.0,2.80348776]
[1718583087682,0.138,66657.0,66656.0,2.8934305]
[1718583087872,0.138,66657.0,66656.0,2.80348776]
[1718583088199,0.00086,66670.0,66669.0,0.169994]
[1718583088397,0.00086,66670.0,66669.0,1.092961]
[1718583088398,0.05086,66670.0,66669.0,1.092961]
[1718583088609,0.19758516,66670.0,66669.0,0.792972]
[1718583089968,0.14758516,66670.0,66669.0,0.792972]
[1718583090180,0.19758516,66670.0,66669.0,0.793972]
[1718583090586,0.19758516,66670.0,66669.0,0.8195145]
[1718583095631,0.19758516,66670.0,66669.0,0.4995255]
[1718583095831,0.19758516,66670.0,66669.0,0.5195255]
[1718583096408,0.19758516,66670.0,66669.0,0.2195365]
[1718583097822,0.19758516,66670.0,66669.0,0.024]
[1718583100181,0.34757716,66670.0,66669.0,0.001]
[1718583100381,0.64756216,66670.0,66669.0,0.001]
[1718583100583,1.04145167,66670.0,66669.0,0.001]
[1718583100961,0.74146667,66670.0,66669.0,0.001]
[1718583101167,0.37932536,66670.0,66669.0,0.001]
[1718583101407,0.67931036,66670.0,66669.0,0.001]
[1718583101612,0.37932536,66670.0,66669.0,0.001]
[1718583102879,0.67931036,66670.0,66669.0,0.001]
[1718583104536,1.03760804,66670.0,66669.0,0.001]
[1718583104955,1.18250281,66670.0,66669.0,0.001]
[1718583105535,0.292306,66664.0,66663.0,0.0436669]
[1718583105748,0.3740542,66664.0,66663.0,0.0436669]
[1718583107251,0.3740542,66664.0,66663.0,0.0446669]
[1718583107454,0.3740542,66664.0,66663.0,0.0476669]
[1718583107678,0.37646751,66664.0,66663.0,0.0476669]
[1718583111460,0.67647951,66664.0,66663.0,0.0042069]
[1718583111661,0.67647951,66664.0,66663.0,0.0476669]
[1718583112530,0.67647951,66664.0,66663.0,0.0042069]
[1718583112992,0.67647951,66664.0,66663.0,0.0476669]
[1718583113348,0.67647951,66664.0,66663.0,0.0042069]
[1718583113554,0.67647951,66664.0,66663.0,0.0476669]
[1718583113951,0.67647951,66664.0,66663.0,0.0042069]
[1718583114122,0.67647951,66664.0,66663.0,0.0476669]
[1718583114741,0.97649151,66664.0,66663.0,0.0042069]
[1718583115151,0.97620579,66664.0,66663.0,0.0042069]
[1718583115914,0.97621209,66664.0,66663.0,0.0042069]
[1718583116886,0.9955958,66664.0,66663.0,0.0042069]
[1718583117607,0.99558676,66664.0,66663.0,0.0476669]
[1718583118955,0.99558676,66664.0,66663.0,0.0042069]
[1718583119372,0.99558676,66664.0,66663.0,0.0476669]
[1718583119373,0.39556276,66664.0,66663.0,0.0476669]
[1718583119792,0.69557476,66664.0,66663.0,0.0476669]
[1718583121369,0.99558676,66664.0,66663.0,0.0476669]
[1718583122930,0.99558676,66664.0,66663.0,0.0042069]
[1718583123130,0.99558676,66664.0,66663.0,0.0476669]
[1718583124919,0.99558676,66664.0,66663.0,0.0042069]
[1718583125147,0.99558676,66664.0,66663.0,0.0476669]
[1718583125668,0.99558676,66664.0,66663.0,0.0042069]
[1718583126016,0.99643676,66664.0,66663.0,0.0476669]
[1718583127231,0.9964458,66664.0,66663.0,0.0476669]
[1718583129521,0.99644469,66664.0,66663.0,0.0476669]
[1718583130076,0.69643269,66664.0,66663.0,0.0476669]
[1718583130609,0.69643269,66664.0,66663.0,0.0042069]
[1718583130929,0.69643269,66664.0,66663.0,0.0476669]
[1718583130930,0.99644149,66664.0,66663.0,0.0476669]
[1718583131117,0.99644149,66664.0,66663.0,0.0042069]
[1718583131335,0.99644149,66664.0,66663.0,0.0476669]
[1718583131561,0.69642949,66664.0,66663.0,0.0476669]
[1718583132948,0.64642949,66664.0,66663.0,0.0476669]
[1718583133306,0.08472778,66664.0,66663.0,0.0476669]
[1718583133531,0.03472778,66664.0,66663.0,0.10743679]
[1718583133736,0.08472778,66664.0,66663.0,0.0706669]
[1718583133953,0.03472778,66664.0,66663.0,0.0706669]
[1718583134109,0.08472778,66664.0,66663.0,0.10865499]
[1718583136142,0.23473378,66664.0,66663.0,0.10865499]
[1718583136359,0.08472778,66664.0,66663.0,0.10865499]
[1718583143640,0.08472778,66664.0,66663.0,0.0706669]
[1718583144714,0.08472778,66664.0,66663.0,0.0906669]
[1718583145880,0.08472778,66664.0,66663.0,0.0706669]
[1718583146557,0.03472778,66664.0,66663.0,0.3820749]
[1718583146767,0.03472778,66664.0,66663.0,0.45028609]
[1718583146768,0.08472778,66664.0,66663.0,0.45028609]
[1718583147725,0.08472778,66664.0,66663.0,0.30027809]
[1718583148339,0.08472778,66664.0,66663.0,0.45028609]
[1718583149594,0.05326331,66664.0,66663.0,0.45028609]
[1718583149793,0.05085,66664.0,66663.0,0.45028609]
[1718583151040,0.00085,66664.0,66663.0,1.05031809]
[1718583151258,0.05085,66664.0,66663.0,1.05031809]
[1718583151912,0.05085,66664.0,66663.0,0.75030209]
[1718583152626,0.05085,66664.0,66663.0,1.05031809]
[1718583153469,0.05085,66664.0,66663.0,0.75030209]
[1718583155456,0.05085,66664.0,66663.0,0.73030209]
[1718583155696,0.05085,66664.0,66663.0,0.75030209]
[1718583156368,0.05085,66664.0,66663.0,0.43028609]
[1718583157004,0.05085,66664.0,66663.0,0.45028609]
[1718583159543,0.05085,66664.0,66663.0,0.75030209]
[1718583159975,0.05085,66664.0,66663.0,1.05031809]
[1718583160198,0.05085,66664.0,66663.0,0.30027809]
[1718583160615,0.05085,66664.0,66663.0,0.45028609]
[1718583163780,0.05085,66664.0,66663.0,0.75030209]
[1718583164626,0.00085,66664.0,66663.0,1.05031809]
[1718583165041,0.05085,66664.0,66663.0,1.05031809]
[1718583165246,0.05085,66664.0,66663.0,0.45028609]
[1718583166334,0.05085,66664.0,66663.0,0.75030209]
[1718583171439,0.05085,66664.0,66663.0,0.75022223]
[1718583177310,0.05085,66664.0,66663.0,0.74922223]
[1718583178888,0.05085,66664.0,66663.0,0.75122223]
[1718583179468,0.05085,66664.0,66663.0,0.74822223]
[1718583179677,0.05085,66664.0,66663.0,0.75222223]
[1718583183477,0.00085,66664.0,66663.0,0.75222223]
[1718583183690,0.05085,66664.0,66663.0,0.75222223]
[1718583186129,0.05085,66664.0,66663.0,0.69122223]
[1718583186747,0.05085,66664.0,66663.0,0.09258704]
[1718583187159,0.05318297,66664.0,66663.0,0.09258704]
[1718583187376,0.13468297,66664.0,66663.0,0.07258704]
[1718583187591,0.40427001,66664.0,66663.0,0.07258704]
[1718583188486,0.25426401,66664.0,66663.0,0.07058704]
[1718583188694,0.25426401,66664.0,66663.0,0.07258704]
[1718583189113,0.25426401,66664.0,66663.0,0.06658704]
[1718583189516,0.25426401,66664.0,66663.0,0.07158704]
[1718583189731,0.25426401,66664.0,66663.0,0.06758704]
[1718583189732,0.40193704,66664.0,66663.0,0.06758704]
[1718583190111,0.40193704,66664.0,66663.0,0.07058704]
[1718583190716,0.70194904,66664.0,66663.0,0.04758704]
[1718583191126,0.70427769,66664.0,66663.0,0.04758704]
[1718583192878,0.70427769,66664.0,66663.0,0.00412704]
[1718583193082,0.70427769,66664.0,66663.0,0.04758704]
[1718583194113,1.25430169,66664.0,66663.0,0.00412704]
[1718583194322,1.34930471,66664.0,66663.0,0.00412704]
[1718583194774,1.30430169,66664.0,66663.0,0.00412704]
[1718583194942,1.00428969,66664.0,66663.0,0.00412704]
[1718583195141,1.0492884,66664.0,66663.0,0.00412704]
[1718583195357,1.0492884,66664.0,66663.0,0.00312704]
[1718583195939,1.0492884,66664.0,66663.0,0.00012704]
[1718583196913,1.4493004,66664.0,66663.0,0.00012704]
[1718583197640,1.3493004,66664.0,66663.0,0.00012704]
[1718583197955,1.0492884,66664.0,66663.0,0.00012704]
[1718583198356,1.00428969,66664.0,66663.0,0.00012704]
[1718583198601,0.99248854,66664.0,66663.0,0.00012704]
[1718583198806,1.04444403,66664.0,66663.0,0.00012704]
[1718583199528,1.34445603,66664.0,66663.0,0.00012704]
[1718583200438,1.29947614,66664.0,66663.0,0.00012704]
[1718583207738,1.34444071,66664.0,66663.0,0.00012704]
[1718583208302,1.69948814,66664.0,66663.0,0.00012704]
[1718583208504,1.316923,66664.0,66663.0,0.00012704]
[1718583208763,1.29947614,66664.0,66663.0,0.00012704]
[1718583209805,1.29947614,66664.0,66663.0,0.00112704]
[1718583212245,1.3444246,66664.0,66663.0,0.00112704]
[1718583212697,1.29947614,66664.0,66663.0,0.00112704]
[1718583213635,1.34442294,66664.0,66663.0,0.00112704]
[1718583214466,1.34442202,66664.0,66663.0,0.00112704]
[1718583214758,1.39947614,66664.0,66663.0,0.00112704]
[1718583215141,1.76397536,66664.0,66663.0,1e-08]
[1718583215346,2.01944036,66664.0,66663.0,1e-08]
[1718583215497,2.06391524,66664.0,66663.0,1e-08]
[1718583215703,1.76390324,66664.0,66663.0,1e-08]
[1718583215906,1.15015,66657.0,66656.0,0.64955305]
[1718583216111,1.49720549,66657.0,66656.0,0.64955305]
[1718583216333,1.4992921,66657.0,66656.0,0.6001]
[1718583216830,1.3992921,66657.0,66656.0,0.6001]
[1718583217028,1.4992921,66657.0,66656.0,0.6001]
[1718583217462,1.4992921,66657.0,66656.0,0.6011]
[1718583218261,1.5032921,66657.0,66656.0,0.6021]
[1718583218420,1.4032921,66657.0,66656.0,0.6021]
[1718583218635,1.4032921,66657.0,66656.0,0.666656]
[1718583219041,1.4032921,66657.0,66656.0,0.6021]
[1718583220305,1.40412703,66657.0,66656.0,0.6021]
[1718583220520,0.74004103,66657.0,66656.0,0.6021]
[1718583221143,0.20887703,66657.0,66656.0,0.6021]
[1718583221346,0.65894103,66657.0,66656.0,0.6021]
[1718583221601,0.95898403,66657.0,66656.0,0.6021]
[1718583221985,0.95898403,66657.0,66656.0,0.6011]
[1718583222196,0.95498403,66657.0,66656.0,0.6001]
[1718583222350,0.95998403,66657.0,66656.0,0.6001]
[1718583222552,0.95998403,66657.0,66656.0,0.602035]
[1718583222767,0.95998403,66657.0,66656.0,0.601035]
[1718583222969,0.95498403,66657.0,66656.0,0.601035]
[1718583223241,0.96198403,66657.0,66656.0,0.603035]
[1718583224172,0.36189803,66657.0,66656.0,0.603035]
[1718583224584,0.66194103,66657.0,66656.0,0.603035]
[1718583225627,0.21187703,66657.0,66656.0,0.603035]
[1718583225801,0.36189803,66657.0,66656.0,0.603035]
[1718583226218,0.66194103,66657.0,66656.0,0.603035]
[1718583227828,0.66194103,66657.0,66656.0,0.6817145]
[1718583230607,0.66194103,66657.0,66656.0,0.603035]
[1718583231458,0.96198403,66657.0,66656.0,0.603035]
[1718583232081,0.95973158,66657.0,66656.0,0.603035]
[1718583233867,1.03503158,66657.0,66656.0,0.603035]
[1718583234274,1.52417903,66657.0,66656.0,0.603035]
[1718583234614,1.42417903,66657.0,66656.0,0.603035]
[1718583234838,1.47417903,66657.0,66656.0,0.603035]
[1718583235063,1.51401813,66657.0,66656.0,0.603035]
[1718583235268,1.42417903,66657.0,66656.0,0.603035]
[1718583235437,1.37417903,66657.0,66656.0,0.603035]
[1718583235766,1.46401813,66657.0,66656.0,0.603035]
[1718583235978,1.51401813,66657.0,66656.0,0.603035]
[1718583236361,1.42417903,66657.0,66656.0,0.603035]
[1718583236769,1.47417903,66657.0,66656.0,0.603035]
[1718583236969,1.5242058,66657.0,66656.0,0.603035]
[1718583237130,1.6140449,66657.0,66656.0,0.603035]
[1718583238849,1.4640449,66657.0,66656.0,0.603035]
[1718583239057,1.51411033,66657.0,66656.0,0.603035]
[1718583239831,1.61411033,66657.0,66656.0,0.603035]
[1718583240820,1.51411033,66657.0,66656.0,0.603035]
[1718583241627,1.61411033,66657.0,66656.0,0.603035]
[1718583241836,1.51411033,66657.0,66656.0,0.603035]
[1718583242039,1.61411033,66657.0,66656.0,0.603035]
[1718583242257,1.42423473,66657.0,66656.0,0.603035]
[1718583242443,1.51411099,66657.0,66656.0,0.603035]
[1718583242598,1.61411099,66657.0,66656.0,0.603035]
[1718583243009,1.52423473,66657.0,66656.0,0.603035]
[1718583243207,1.51411075,66657.0,66656.0,0.603035]
[1718583243413,1.46411075,66657.0,66656.0,0.603035]
[1718583243595,1.36841075,66657.0,66656.0,0.603035]
[1718583243795,1.36841045,66657.0,66656.0,0.603035]
[1718583244035,0.71832445,66657.0,66656.0,0.603035]
[1718583244267,0.17838473,66657.0,66656.0,0.6775785]
[1718583244474,0.17838473,66657.0,66656.0,0.8213785]
[1718583244475,0.2957926,66657.0,66656.0,0.8213785]
[1718583244680,0.4458136,66657.0,66656.0,0.8213785]
[1718583244947,0.27332577,66657.0,66656.0,0.8213785]
[1718583245094,0.22332577,66657.0,66656.0,0.8213785]
[1718583245311,0.22838473,66657.0,66656.0,0.8213785]
[1718583245712,0.17838473,66657.0,66656.0,0.8413785]
[1718583245997,0.12629812,66657.0,66656.0,0.8413785]
[1718583246218,0.22629812,66657.0,66656.0,0.8413785]
[1718583246693,0.02570445,66657.0,66656.0,0.8413785]
[1718583246887,0.07570445,66657.0,66656.0,0.8413785]
[1718583247352,0.057,66657.0,66656.0,1.2914505]
[1718583247583,0.007,66657.0,66656.0,1.3144505]
[1718583247805,0.007,66657.0,66656.0,1.3579105]
[1718583248029,0.057,66657.0,66656.0,1.3579105]
[1718583248488,0.057,66657.0,66656.0,1.3569105]
[1718583249422,0.10085,66664.0,66663.0,0.02]
[1718583249646,0.00085,66664.0,66663.0,0.9508886]
[1718583249870,0.00085,66664.0,66663.0,0.7173326]
[1718583250083,0.05085,66664.0,66663.0,0.7173326]
[1718583250752,0.05085,66664.0,66663.0,1.0183486]
[1718583250753,0.00385,66664.0,66663.0,1.0183486]
[1718583251243,0.00085,66664.0,66663.0,1.0173486]
[1718583251464,0.00085,66664.0,66663.0,1.0213486]
[1718583252042,0.00085,66664.0,66663.0,0.7213326]
[1718583252259,0.00085,66664.0,66663.0,1.0213486]
[1718583252507,0.00085,66664.0,66663.0,1.0233486]
[1718583253179,0.00085,66664.0,66663.0,1.17543639]
[1718583253403,0.00085,66664.0,66663.0,1.18543639]
[1718583253617,0.00085,66664.0,66663.0,1.17543639]
[1718583253839,0.00085,66664.0,66663.0,1.18543639]
[1718583254508,0.00085,66664.0,66663.0,1.48545239]
[1718583254740,0.00085,66664.0,66663.0,1.18543639]
[1718583254969,0.00085,66664.0,66663.0,1.48545239]
[1718583256331,0.00085,66664.0,66663.0,1.47945239]
[1718583256558,0.00085,66664.0,66663.0,1.49945239]
[1718583256796,0.00085,66664.0,66663.0,1.48845239]
[1718583257322,0.00085,66664.0,66663.0,1.47945239]
[1718583257700,0.00085,66664.0,66663.0,1.48845239]
[1718583257904,0.00085,66664.0,66663.0,1.78846839]
[1718583258114,0.00085,66664.0,66663.0,1.88846839]
[1718583258274,0.00085,66664.0,66663.0,1.79946839]
[1718583258475,0.00085,66664.0,66663.0,1.89946839]
[1718583258932,0.00085,66664.0,66663.0,1.79946839]
[1718583260597,0.00085,66664.0,66663.0,1.49945239]
[1718583262699,0.00085,66664.0,66663.0,1.79946839]
[1718583266262,0.00085,66664.0,66663.0,1.94946839]
[1718583266985,0.00085,66664.0,66663.0,2.44949839]
[1718583268010,0.00085,66664.0,66663.0,2.49949839]
[1718583268816,0.00085,66664.0,66663.0,2.19948239]
[1718583269014,0.00085,66664.0,66663.0,2.49949839]
[1718583272478,0.00085,66664.0,66663.0,2.62398226]
[1718583274496,0.00085,66664.0,66663.0,2.93519437]
[1718583275291,0.00085,66664.0,66663.0,2.58517837]
[1718583275471,0.00085,66664.0,66663.0,2.63517837]
[1718583276375,0.00085,66664.0,66663.0,2.99743639]
[1718583277384,0.00085,66664.0,66663.0,2.69742039]
[1718583277795,0.00085,66664.0,66663.0,3.09743639]
[1718583278025,0.00085,66664.0,66663.0,2.99743639]
[1718583278398,0.00085,66664.0,66663.0,2.64742039]
[1718583278749,0.00085,66664.0,66663.0,2.69742039]
[1718583279959,0.00085,66664.0,66663.0,2.33740439]
[1718583280166,0.00085,66664.0,66663.0,2.25105579]
[1718583280374,0.00085,66664.0,66663.0,2.55107179]
[1718583280595,0.00085,66664.0,66663.0,2.56107179]
[1718583281220,0.00085,66664.0,66663.0,2.55107179]
[1718583281430,0.00085,66664.0,66663.0,1.88713979]
[1718583281626,0.00085,66664.0,66663.0,1.80653979]
[1718583281827,0.00085,66664.0,66663.0,1.89638556]
[1718583282033,0.00085,66664.0,66663.0,2.19640156]
[1718583283319,0.00085,66664.0,66663.0,2.25864937]
[1718583284917,0.00085,66664.0,66663.0,2.25864938]
[1718583285116,0.00085,66664.0,66663.0,1.50652959]
[1718583285297,0.00085,66664.0,66663.0,0.98306166]
[1718583285488,0.00085,66664.0,66663.0,1.43402066]
[1718583285883,0.00085,66664.0,66663.0,1.30953679]
[1718583286086,0.00085,66664.0,66663.0,1.58612527]
[1718583287923,0.14075,66664.0,66663.0,0.96401348]
[1718583288132,0.14075,66664.0,66663.0,1.11402148]
[1718583288334,0.14075,66664.0,66663.0,0.98952079]
[1718583288530,0.14075,66664.0,66663.0,0.85951279]
[1718583290121,0.14075,66664.0,66663.0,1.00952079]
[1718583290335,0.14075,66664.0,66663.0,1.16160858]
[1718583293751,0.07755,66664.0,66663.0,1.16160858]
[1718583294162,0.07755,66664.0,66663.0,1.46162458]
[1718583294361,0.00085,66664.0,66663.0,1.46162458]
[1718583302051,0.00085,66664.0,66663.0,1.76164058]
[1718583303476,0.00085,66664.0,66663.0,1.83894058]
[1718583303822,0.00085,66664.0,66663.0,2.33995651]